bitfinex-derivatives/quotes_SOLF0:USTF0_20260108
["timestamp","ask_amount","ask_price","bid_price","bid_amount"]
[1767881885346,0.31428621,134.19,134.13,7.03641783]
[1767881892762,7.02918621,134.19,134.13,7.03641783]
[1767881893066,7.02918621,134.19,134.13,0.31861783]
[1767881893265,0.31428621,134.19,134.12,0.31425015]
[1767881893460,0.30651867,134.18,134.12,0.31425015]
[1767881894162,0.30651867,134.16,134.1,7.29042982]
[1767881894348,0.30651867,134.16,134.1,0.31425015]
[1767881894549,88.14,134.18,134.1,0.31425015]
[1767881894752,88.44651867,134.18,134.11,0.31425015]
[1767881895366,6.7159,134.17,134.11,0.31425015]
[1767881895865,7.02241867,134.17,134.11,2.21407396]
[1767881898565,6.7165,134.16,134.11,2.21407396]
[1767881899264,0.30651867,134.17,134.11,8.93287396]
[1767881899955,0.30651867,134.17,134.09,9.19025363]
[1767881900152,0.30651867,134.17,134.09,0.31425015]
[1767881901268,0.30651867,134.17,134.09,7.03415015]
[1767881901769,0.30651867,134.15,134.09,7.03415015]
[1767881903371,0.30651867,134.15,134.09,0.31425015]
[1767881911573,0.30651867,134.15,134.09,7.03415015]
[1767881914770,6.7165,134.16,134.1,0.32104979]
[1767881915576,7.03597929,134.16,134.1,0.32104979]
[1767881916474,7.03647929,134.15,134.09,6.7199]
[1767881916773,0.31947929,134.14,134.09,6.7199]
[1767881917474,0.31947929,134.14,134.09,7.04094979]
[1767881921271,7.03597929,134.16,134.1,0.32104979]
[1767881922780,7.03637929,134.15,134.09,7.04094979]
[1767881928498,0.31947929,134.15,134.1,7.04034979]
[1767881937192,0.31947929,134.17,134.11,7.03984979]
[1767881939595,7.03547929,134.17,134.11,0.32104979]
[1767881940293,6.7154,134.18,134.12,0.32104979]
[1767881940489,0.31947929,134.22,134.12,0.32104979]
[1767881940688,0.31947929,134.21,134.12,0.32104979]
[1767881940891,0.31947929,134.21,134.14,0.32104979]
[1767881941289,0.31947929,134.21,134.15,0.32104979]
[1767881942692,6.7144,134.2,134.15,0.32104979]
[1767881944007,7.01612562,134.2,134.13,14.02736485]
[1767881944189,7.01612562,134.2,134.14,0.33338518]
[1767881947305,0.30172562,134.2,134.12,7.29857059]
[1767881947503,0.30172562,134.2,134.12,0.32239092]
[1767881947905,0.31319247,134.19,134.12,0.32239092]
[1767881948598,7.02919247,134.17,134.12,0.32239092]
[1767881949910,0.31319247,134.16,134.1,14.01747059]
[1767881950704,91.10888155,134.2,134.08,12.21886727]
[1767881950705,0.31319247,134.15,134.08,14.01857059]
[1767881950908,0.31319247,134.15,134.08,0.32239092]
[1767881951207,0.31319247,134.15,134.09,0.32239092]
[1767881953398,0.31319247,134.15,134.07,0.32239092]
[1767881954506,7.03059247,134.14,134.07,0.32239092]
[1767881955802,0.31319247,134.13,134.07,0.32239092]
[1767881957505,7.03109247,134.13,134.07,0.32239092]
[1767881958704,7.03179247,134.12,134.06,6.97617967]
[1767881958910,0.31319247,134.14,134.08,0.32239092]
[1767881960201,7.03059247,134.14,134.08,0.32239092]
[1767881962624,0.31319247,134.12,134.05,0.32239092]
[1767881963107,0.31319247,134.11,134.05,0.32239092]
[1767881966415,7.03209247,134.11,134.05,0.32239092]
[1767881969906,0.31319247,134.11,134.05,0.32239092]
[1767881970308,0.31319247,134.11,134.05,7.04429092]
[1767881972611,0.31611245,134.13,134.07,0.30203254]
[1767881974211,0.31611245,134.12,134.05,7.02393254]
[1767881975220,7.03451245,134.12,134.05,7.02393254]
[1767881975722,0.31611245,134.11,134.05,0.30203254]
[1767881975922,7.03511245,134.11,134.05,0.30203254]
[1767881977626,7.03511245,134.11,134.04,8.62348062]
[1767881977627,7.03511245,134.11,134.06,2.20321316]
[1767881978221,6.7195,134.1,134.04,7.02433254]
[1767881978427,7.03561245,134.1,134.05,1.90118062]
[1767881979326,6.7199,134.09,134.05,1.90118062]
[1767881981228,0.31611245,134.12,134.06,0.30203254]
[1767881982523,7.03491245,134.12,134.06,0.30203254]
[1767881983127,0.31611245,134.12,134.07,2.20321316]
[1767881985229,0.31611245,134.12,134.07,8.92411316]
[1767881989027,0.31611245,134.12,134.08,6.7204]
[1767881990033,0.31611245,134.14,134.09,6.7199]
[1767881990326,0.31611245,134.14,134.07,2.20321316]
[1767881991332,0.31611245,134.14,134.09,6.7205]
[1767881991831,0.31611245,134.14,134.08,6.7211]
[1767881992031,0.31611245,134.13,134.07,0.30203254]
[1767881993531,7.03471245,134.13,134.07,0.30203254]
[1767881993730,0.31611245,134.12,134.06,6.7216]
[1767881994231,0.31611245,134.12,134.06,13.67754932]
[1767881994434,0.31611245,134.12,134.06,13.97958186]
[1767881994935,0.31611245,134.12,134.07,6.7216]
[1767881995133,0.31611245,134.12,134.07,7.02363254]
[1767881995732,0.31611245,134.13,134.07,7.02363254]
[1767881995933,0.31611245,134.13,134.07,8.92481316]
[1767882000332,6.7183,134.14,134.08,0.30203254]
[1767882000532,0.31611245,134.15,134.1,0.30203254]
[1767882000737,0.31611245,134.17,134.12,0.30203254]
[1767882001436,0.31611245,134.17,134.12,7.02113254]
[1767882001736,96.77678062,134.2,134.12,0.30203254]
[1767882001935,0.31611245,134.19,134.12,0.30203254]
[1767882002439,0.31611245,134.19,134.12,7.02113254]
[1767882002831,0.31059064,134.18,134.12,7.02113254]
[1767882003141,0.31059064,134.18,134.12,0.30203254]
[1767882007340,0.30417647,134.2,134.14,0.33404226]
[1767882007544,0.30417647,134.2,134.15,2.23522288]
[1767882007734,6.715,134.21,134.15,2.23522288]
[1767882007942,0.30417647,134.22,134.16,2.23522288]
[1767882009239,0.30417647,134.22,134.16,0.33404226]
[1767882009634,7.01827647,134.22,134.16,0.33404226]
[1767882011039,0.30417647,134.2,134.14,2.23522288]
[1767882011237,0.30417647,134.2,134.14,1.90118062]
[1767882011438,0.30417647,134.2,134.12,2.23522288]
[1767882012045,0.30417647,134.19,134.12,2.23522288]
[1767882012439,0.30417647,134.17,134.1,2.23522288]
[1767882012946,0.30417647,134.14,134.08,0.33404226]
[1767882014545,7.02237647,134.14,134.08,0.33404226]
[1767882019142,7.02237647,134.14,134.08,2.23522288]
[1767882020249,7.02237647,134.14,134.08,8.95632288]
[1767882021747,7.02237647,134.14,134.09,0.33404226]
[1767882022053,0.30417647,134.15,134.09,0.33404226]
[1767882022244,0.30417647,134.15,134.1,0.33404226]
[1767882022445,0.30417647,134.17,134.11,0.33404226]
[1767882022646,7.02117647,134.17,134.11,0.33404226]
[1767882023041,0.30417647,134.17,134.12,1.90118062]
[1767882023247,7.02017647,134.19,134.12,2.23522288]
[1767882024253,7.02017647,134.19,134.12,8.95422288]
[1767882027361,0.30417647,134.18,134.12,8.95422288]
[1767882027856,0.30417647,134.17,134.1,8.95492288]
[1767882028055,0.30417647,134.17,134.1,7.05374226]
[1767882029261,0.30417647,134.17,134.09,1.90118062]
[1767882029262,0.30417647,134.12,134.05,7.05654226]
[1767882029459,0.30417647,134.12,134.05,0.33404226]
[1767882029662,0.30417647,134.14,134.07,0.33404226]
[1767882029865,0.30417647,134.14,134.07,7.05554226]
[1767882030363,104.4838,134.17,134.09,0.33404226]
[1767882030364,88.44417647,134.16,134.09,0.33404226]
[1767882030857,0.30417647,134.16,134.09,0.33404226]
[1767882031052,6.7176,134.15,134.09,0.33404226]
[1767882035373,6.7198,134.11,134.06,7.2605821]
[1767882035582,0.32505686,134.1,134.04,0.31624632]
[1767882036080,6.7206,134.09,134.04,0.31624632]
[1767882036873,6.7212,134.08,134.04,0.31624632]
[1767882037280,0.32505686,134.1,134.04,0.31624632]
[1767882038183,7.04535686,134.1,134.04,0.31624632]
[1767882039980,6.7203,134.1,134.05,0.31624632]
[1767882040589,7.04455686,134.12,134.05,0.31624632]
[1767882040887,0.32505686,134.12,134.06,0.31624632]
[1767882041091,0.32505686,134.14,134.06,0.31624632]
[1767882041785,0.32505686,134.14,134.05,98.07630008]
[1767882041786,7.04365686,134.14,134.08,0.31624632]
[1767882041985,192.6448,134.17,134.08,0.31624632]
[1767882041986,0.32505686,134.16,134.08,0.31624632]
[1767882043680,6.7177,134.15,134.08,7.03724632]
[1767882046292,0.32505686,134.14,134.05,98.3925464]
[1767882046486,0.32505686,134.13,134.06,0.31624632]
[1767882047582,7.04365686,134.13,134.06,7.03834632]
[1767882050289,0.32505686,134.12,134.06,7.03834632]
[1767882052494,7.04415686,134.12,134.06,7.03834632]
[1767882053997,7.04335686,134.14,134.07,0.31624632]
[1767882054295,0.32505686,134.14,134.07,0.31624632]
[1767882055395,7.04335686,134.14,134.07,7.03734632]
[1767882055988,0.32505686,134.14,134.08,7.03704632]
[1767882059690,95.20205686,134.17,134.1,0.31624632]
[1767882060490,6.7172,134.16,134.1,7.03634632]
[1767882061090,7.04225686,134.16,134.1,7.03634632]
[1767882061999,6.7176,134.15,134.1,0.31624632]
[1767882062394,7.05001868,134.15,134.1,0.31624632]
[1767882062897,7.05001868,134.15,134.09,6.7205]
[1767882063294,7.05071868,134.14,134.08,0.32016034]
[1767882063696,0.33241868,134.14,134.08,0.32016034]
[1767882064686,0.33241868,134.14,134.09,6.7206]
[1767882068002,7.05051868,134.14,134.08,7.04116034]
[1767882068689,0.33019146,134.12,134.06,7.02599287]
[1767882068889,0.33019146,134.12,134.06,0.30439287]
[1767882069097,0.33019146,134.15,134.06,0.30439287]
[1767882069301,2.9719643,134.16,134.06,0.30439287]
[1767882069302,7.04879146,134.13,134.06,0.30439287]
[1767882070001,0.33019146,134.12,134.06,7.02649287]
[1767882070194,0.33019146,134.12,134.06,0.30439287]
[1767882070394,0.33019146,134.14,134.07,0.30439287]
[1767882070991,7.04829146,134.14,134.07,7.02599287]
[1767882071393,7.04829146,134.14,134.07,0.30439287]
[1767882072494,0.33019146,134.13,134.07,0.30439287]
[1767882072896,7.04879146,134.13,134.07,0.30439287]
[1767882073595,0.33019146,134.13,134.07,0.30439287]
[1767882077610,7.04879146,134.13,134.07,0.30439287]
[1767882080905,0.33019146,134.12,134.06,6.94433578]
[1767882081117,0.33019146,134.12,134.04,13.66713578]
[1767882081502,7.04979146,134.11,134.04,13.97152865]
[1767882083109,6.7201,134.1,134.04,13.97152865]
[1767882083309,7.05029146,134.1,134.04,13.97152865]
[1767882084705,0.33019146,134.08,134.02,7.24872865]
[1767882085505,0.33019146,134.07,134.01,6.94433578]
[1767882085809,0.33019146,134.07,134.01,7.24872865]
[1767882086006,0.33019146,134.07,134.01,13.97332865]
[1767882086203,0.33019146,134.07,134.01,7.02899287]
[1767882086398,0.33019146,134.07,134.01,0.30439287]
[1767882089603,0.33019146,134.07,133.99,7.24872865]
[1767882090720,7.05249146,134.06,133.99,0.30439287]
[1767882091016,0.33019146,134.05,133.97,0.30439287]
[1767882091309,107.5346643,134.07,133.97,0.30439287]
[1767882091310,7.05389146,134.03,133.97,0.30439287]
[1767882092311,0.31800337,134.01,133.95,0.32650897]
[1767882092615,0.31800337,134.01,133.93,7.05510897]
[1767882093108,7.04330337,134.0,133.93,0.32650897]
[1767882093811,7.04240337,134.02,133.94,0.32650897]
[1767882094107,0.31800337,134.01,133.94,0.32650897]
[1767882095608,7.04270337,134.01,133.94,0.32650897]
[1767882097715,7.04270337,134.01,133.94,7.05450897]
[1767882098517,0.31800337,134.01,133.95,1.90407187]
[1767882100018,0.31800337,134.0,133.94,7.05450897]
[1767882100202,0.31800337,134.0,133.94,8.95858084]
[1767882102412,90.08407187,134.03,133.94,8.63207187]
[1767882102607,88.49800337,134.03,133.96,2.23058084]
[1767882103012,88.49800337,134.03,133.97,0.32650897]
[1767882103812,95.22160337,134.03,133.97,0.32650897]
[1767882104219,7.04110337,134.05,133.98,2.23058084]
[1767882104913,7.04110337,134.05,133.98,8.95668084]
[1767882105115,0.31800337,134.05,134.0,1.90407187]
[1767882106318,0.31800337,134.05,133.99,2.23058084]
[1767882106618,0.31800337,134.05,133.99,8.95618084]
[1767882107006,0.31800337,134.04,133.98,1.90407187]
[1767882107211,0.31800337,134.04,133.97,2.23058084]
[1767882107411,0.31800337,134.03,133.97,2.23058084]
[1767882107612,0.31800337,134.03,133.96,1.90407187]
[1767882108020,0.31800337,134.03,133.96,2.23058084]
[1767882108619,7.04160337,134.03,133.96,8.95758084]
[1767882109222,0.31800337,134.02,133.96,8.95758084]
[1767882109720,0.31800337,134.02,133.96,0.32650897]
[1767882109919,0.31800337,134.01,133.94,8.95818084]
[1767882110614,0.31800337,134.01,133.94,2.23058084]
[1767882111624,6.7251,134.0,133.94,2.23058084]
[1767882112827,0.31800337,134.0,133.92,8.95938084]
[1767882114618,6.7262,133.98,133.92,8.95938084]
[1767882115225,0.31800337,134.0,133.93,0.32650897]
[1767882116525,6.7256,133.99,133.93,0.32650897]
[1767882117118,6.7256,133.99,133.93,2.23058084]
[1767882117422,6.7256,133.99,133.93,8.95918084]
[1767882118627,0.31800337,134.0,133.95,1.90407187]
[1767882118823,88.55800337,134.02,133.95,2.23058084]
[1767882119020,88.55800337,134.02,133.96,0.32650897]
[1767882120028,0.31800337,134.02,133.96,0.32650897]
[1767882120733,7.04250337,134.02,133.96,0.32650897]
[1767882120930,6.7245,134.02,133.97,2.23058084]
[1767882121135,0.31800337,134.04,133.98,0.32650897]
[1767882121333,6.7236,134.03,133.98,0.32650897]
[1767882121539,7.04160337,134.03,133.97,2.23058084]
[1767882125232,7.04160337,134.03,133.97,8.95718084]
[1767882126427,7.04160337,134.03,133.97,0.32650897]
[1767882126637,194.71427187,134.06,133.95,0.3019592]
[1767882126638,0.31919878,134.01,133.95,0.3019592]
[1767882126827,0.31919878,134.01,133.94,1.90407187]
[1767882127026,0.31919878,134.01,133.94,8.63217187]
[1767882127432,0.31919878,134.01,133.94,6.7281]
[1767882127834,7.04309878,134.03,133.96,0.3019592]
[1767882128028,7.04309878,134.03,133.96,2.20603107]
[1767882128337,0.31919878,134.01,133.95,6.7275]
[1767882128537,0.31919878,134.01,133.95,7.0294592]
[1767882128732,0.31919878,134.01,133.95,8.93353107]
[1767882129633,0.31919878,134.01,133.95,2.20603107]
[1767882130235,0.31919878,134.01,133.96,2.20603107]
[1767882130549,0.31919878,134.01,133.96,0.3019592]
[1767882130847,95.28239878,134.04,133.98,2.20603107]
[1767882133237,0.31919878,134.02,133.96,0.3019592]
[1767882133549,0.31919878,134.02,133.95,8.63127187]
[1767882133747,0.31919878,134.01,133.94,7.24629498]
[1767882134051,0.31919878,134.01,133.96,1.90407187]
[1767882134347,0.31919878,134.01,133.95,0.3019592]
[1767882134543,0.31919878,134.01,133.96,1.90407187]
[1767882134740,90.14407187,134.04,133.93,0.3019592]
[1767882134741,2.22327065,134.0,133.93,0.3019592]
[1767882135646,0.31919878,133.99,133.93,0.3019592]
[1767882136038,0.31919878,134.01,133.94,2.20603107]
[1767882136242,7.04389878,134.01,133.94,2.20603107]
[1767882136742,7.04319878,134.03,133.97,0.3019592]
[1767882137337,0.31919878,134.03,133.98,1.90407187]
[1767882138550,0.31919878,134.03,133.97,8.93253107]
[1767882138755,0.31919878,134.03,133.95,7.24629498]
[1767882139049,0.31919878,134.03,133.95,9.15036685]
[1767882139650,0.31919878,134.03,133.95,2.20603107]
[1767882140344,0.31919878,134.03,133.95,0.3019592]
[1767882140544,0.31919878,134.02,133.95,0.3019592]
[1767882140740,0.31919878,134.02,133.95,2.20603107]
[1767882141651,6.7246,134.01,133.95,2.20603107]
[1767882142054,0.31919878,134.02,133.95,2.20603107]
[1767882143256,0.31919878,134.02,133.95,0.3019592]
[1767882143657,6.7246,134.01,133.95,0.3019592]
[1767882143852,7.04379878,134.01,133.95,0.3019592]
[1767882144056,0.31919878,134.0,133.94,8.84840765]
[1767882144354,0.31919878,134.0,133.94,9.15036685]
[1767882145158,0.31919878,134.0,133.94,7.24629498]
[1767882145358,0.31919878,134.0,133.94,9.15036685]
[1767882145553,7.04439878,134.0,133.94,7.24629498]
[1767882145745,7.04439878,134.0,133.94,9.15036685]
[1767882146359,6.7252,134.0,133.95,0.3019592]
[1767882146764,6.7256,133.99,133.95,0.3019592]
[1767882147853,6.7256,133.99,133.93,97.39036685]
[1767882148051,6.7256,133.99,133.93,90.44603107]
[1767882148257,6.7262,133.98,133.93,2.20603107]
[1767882148652,6.7262,133.98,133.93,0.3019592]
[1767882148853,104.5943,134.03,133.97,1.90407187]
[1767882148854,6.7236,134.03,133.97,1.90407187]
[1767882149051,6.7236,134.03,133.99,1.90407187]
[1767882149460,6.7236,134.03,133.98,1.90407187]
[1767882149663,0.31919878,134.05,133.98,1.90407187]
[1767882150666,6.7232,134.04,133.98,1.90407187]
[1767882151166,7.04289878,134.03,133.96,6.7271]
[1767882151352,7.04289878,134.03,133.97,1.90407187]
[1767882151752,6.7237,134.03,133.97,8.63067187]
[1767882151968,7.04229878,134.05,133.97,8.63067187]
[1767882152357,7.04229878,134.05,133.99,1.90407187]
[1767882152558,7.04229878,134.05,133.98,1.90407187]
[1767882154157,7.04847877,134.07,134.0,1.90407187]
[1767882155363,7.04877877,134.06,133.99,6.7256]
[1767882155663,0.32657877,134.05,133.99,1.90407187]
[1767882155958,0.32657877,134.05,133.97,6.94433578]
[1767882156160,7.04927877,134.05,133.98,8.63017187]
[1767882156557,0.32657877,134.03,133.97,8.63057187]
[1767882156763,0.32657877,134.03,133.97,1.90407187]
[1767882158564,7.05027877,134.03,133.97,1.90407187]
[1767882158759,7.05027877,134.03,133.96,13.67123578]
[1767882158963,7.05027877,134.03,133.97,1.90407187]
[1767882159555,7.05027877,134.03,133.96,13.67123578]
[1767882159763,7.05027877,134.03,133.97,1.90407187]
[1767882160662,7.05027877,134.03,133.96,16.64510615]
[1767882161060,7.04947877,134.05,133.97,6.7266]
[1767882161362,0.32657877,134.04,133.96,6.94433578]
[1767882161554,0.32657877,134.04,133.96,9.91820615]
[1767882162664,7.04967877,134.04,133.97,6.7265]
[1767882164957,7.04967877,134.04,133.96,9.91820615]
[1767882164958,7.04967877,134.04,133.98,6.726]
[1767882169661,0.32657877,134.03,133.96,9.91820615]
[1767882170669,0.32657877,134.03,133.97,6.7266]
[1767882173373,0.32657877,134.05,133.96,9.91820615]
[1767882173678,6.7224,134.06,133.98,9.91820615]
[1767882174178,7.93109877,134.08,134.01,6.7246]
[1767882175472,7.60452,134.08,134.01,6.7246]
[1767882175677,0.32657877,134.07,134.01,6.7246]
[1767882179374,0.32657877,134.07,134.02,6.724]
[1767882179578,7.60452,134.08,134.02,6.724]
[1767882179876,7.93109877,134.08,134.02,6.724]
[1767882180269,0.88312,134.08,134.03,6.7236]
[1767882180577,0.88312,134.08,134.0,9.91820615]
[1767882180971,0.88312,134.08,134.01,6.7241]
[1767882181277,0.88312,134.08,134.0,9.91820615]
[1767882182279,0.88312,134.08,134.03,6.7236]
[1767882182780,0.88312,134.08,134.04,6.7231]
[1767882185282,0.53818824,134.08,134.04,6.7231]
[1767882185468,192.728,134.14,134.04,6.7231]
[1767882185469,7.03516438,134.13,134.06,6.7219]
[1767882185673,0.31626438,134.13,134.04,2.97387037]
[1767882186075,0.31626438,134.13,134.05,88.2]
[1767882186576,0.31626438,134.16,134.08,6.7211]
[1767882188584,7.03386438,134.15,134.08,6.7211]
[1767882188976,88.2,134.17,134.06,6.7217]
[1767882188977,0.31626438,134.14,134.06,6.7217]
[1767882190583,7.03486438,134.13,134.06,6.7217]
[1767882190785,0.31626438,134.12,134.06,6.7217]
[1767882191084,0.31626438,134.09,134.01,6.94433578]
[1767882191384,0.31626438,134.09,134.01,88.2]
[1767882191984,0.31626438,134.09,134.04,6.7231]
[1767882194389,7.03606438,134.11,134.04,6.7231]
[1767882195985,7.03646438,134.1,134.04,6.7231]
[1767882196188,0.31626438,134.1,134.02,6.7237]
[1767882196890,6.7206,134.09,134.03,6.7236]
[1767882199086,7.03686438,134.09,134.01,88.18]
[1767882200592,7.03686438,134.09,134.02,6.724]
[1767882202997,7.03686438,134.09,134.03,6.7235]
[1767882203493,0.31626438,134.09,134.04,6.7231]
[1767882203897,88.49626438,134.11,134.04,6.7231]
[1767882204895,95.21586438,134.11,134.05,6.7226]
[1767882205294,0.31626438,134.1,134.02,2.97387037]
[1767882206096,0.31626438,134.1,134.04,6.7229]
[1767882208103,6.7188,134.13,134.06,6.7219]
[1767882208401,6.7188,134.13,134.04,2.97387037]
[1767882209099,6.7188,134.13,134.05,88.18]
[1767882209585,6.7188,134.13,134.07,6.7216]
[1767882209786,88.18,134.17,134.06,2.97387037]
[1767882209787,7.03406438,134.15,134.06,2.97387037]
[1767882210290,0.31626438,134.15,134.09,6.7206]
[1767882210695,0.31626438,134.17,134.07,104.5579]
[1767882210999,0.31626438,134.17,134.08,91.15387037]
[1767882211494,0.31626438,134.17,134.11,6.7195]
[1767882212092,7.03286438,134.17,134.09,6.7201]
[1767882212401,7.03286438,134.17,134.08,91.15387037]
[1767882213695,0.36038525,134.16,134.1,6.72]
[1767882217602,0.36038525,134.16,134.11,6.7196]
[1767882217803,7.07648525,134.18,134.11,6.7196]
[1767882218500,7.07698525,134.17,134.11,6.7196]
[1767882218701,0.36038525,134.16,134.11,6.7196]
[1767882220103,0.36038525,134.16,134.09,6.7201]
[1767882220303,7.07748525,134.16,134.09,6.7201]
[1767882220692,0.36038525,134.16,134.08,88.18]
[1767882220893,0.36038525,134.16,134.07,111.4958506]
[1767882221093,0.36038525,134.16,134.08,88.16]
[1767882221297,6.7166,134.17,134.11,6.7196]
[1767882222499,6.7166,134.17,134.11,8.61915254]
[1767882225107,7.07698525,134.17,134.11,8.61915254]
[1767882226797,0.36038525,134.16,134.11,8.61915254]
[1767882227609,0.36038525,134.16,134.11,6.7196]
[1767882228208,0.36038525,134.16,134.12,6.719]
[1767882229711,7.07648525,134.18,134.12,6.719]
[1767882231715,7.07648525,134.18,134.13,6.7185]
[1767882231716,0.36038525,134.18,134.13,6.7185]
[1767882231911,7.07588525,134.2,134.12,1.89955254]
[1767882232109,7.07588525,134.2,134.14,1.89955254]
[1767882232315,0.36038525,134.23,134.14,1.89955254]
[1767882232814,0.36038525,134.23,134.12,192.6549]
[1767882233015,0.36038525,134.23,134.15,1.89955254]
[1767882234015,0.36038525,134.23,134.17,8.61615254]
[1767882234222,0.36038525,134.27,134.19,1.89955254]
[1767882234915,0.36038525,134.27,134.19,8.61495254]
[1767882235114,0.36038525,134.27,134.2,1.89955254]
[1767882235306,0.36038525,134.26,134.19,1.89955254]
[1767882236719,6.7128,134.25,134.19,1.89955254]
[1767882237313,0.36038525,134.26,134.19,1.89955254]
[1767882237708,6.7132,134.24,134.16,6.7167]
[1767882238017,7.07358525,134.24,134.18,1.89955254]
[1767882239411,7.07398525,134.23,134.18,1.89955254]
[1767882239619,7.07398525,134.23,134.16,8.61625254]
[1767882240912,0.36038525,134.22,134.16,1.89955254]
[1767882241918,0.36038525,134.22,134.14,8.61725254]
[1767882242821,6.7147,134.21,134.14,8.61725254]
[1767882243220,7.07678696,134.21,134.14,8.61725254]
[1767882247126,0.34117146,134.24,134.16,8.61645254]
[1767882248519,6.7136,134.23,134.16,8.61645254]
[1767882249124,0.34117146,134.22,134.16,8.61645254]
[1767882249318,6.7136,134.23,134.14,6.7176]
[1767882249319,0.34117146,134.21,134.14,6.7176]
[1767882249525,0.34117146,134.21,134.14,8.61715254]
[1767882250625,104.4221,134.25,134.15,6.7176]
[1767882250825,0.34117146,134.24,134.12,104.5154]
[1767882251026,0.34117146,134.24,134.16,1.89955254]
[1767882251526,0.34117146,134.24,134.16,8.61655254]
[1767882251527,6.714,134.23,134.16,8.61655254]
[1767882251728,7.05517146,134.23,134.16,8.61655254]
[1767882253033,6.7131,134.24,134.18,1.89955254]
[1767882254125,7.05427146,134.24,134.18,1.89955254]
[1767882254328,6.7136,134.23,134.18,1.89955254]
[1767882254630,0.34117146,134.23,134.15,6.7171]
[1767882254822,0.34117146,134.21,134.15,8.61665254]
[1767882255024,0.34117146,134.21,134.15,6.7171]
[1767882255322,0.34117146,134.21,134.15,8.61665254]
[1767882255722,7.05607146,134.21,134.15,1.89955254]
[1767882256531,6.7151,134.2,134.14,6.718]
[1767882257625,7.05577146,134.21,134.14,6.718]
[1767882259628,7.05577146,134.21,134.15,1.89955254]
[1767882260836,6.7151,134.2,134.15,1.89955254]
[1767882261337,0.34117146,134.21,134.15,1.89955254]
[1767882262535,7.05577146,134.21,134.15,1.89955254]
[1767882266840,6.7153,134.2,134.15,1.89955254]
[1767882267045,0.34117146,134.19,134.14,8.61755254]
[1767882268248,0.34117146,134.18,134.12,6.7186]
[1767882269230,0.34117146,134.16,134.1,13.67583746]
[1767882269435,0.34117146,134.16,134.1,6.7196]
[1767882269635,0.34117146,134.16,134.09,8.85579]
[1767882270640,7.05827146,134.16,134.09,15.57629]
[1767882272042,7.05827146,134.16,134.09,8.62005254]
[1767882272236,6.7178,134.15,134.09,15.57629]
[1767882272441,6.7178,134.15,134.09,8.62005254]
[1767882273140,7.06860583,134.15,134.09,8.62005254]
[1767882275246,7.06860583,134.15,134.09,6.7205]
[1767882275448,0.35080583,134.14,134.08,1.89955254]
[1767882276245,0.35080583,134.14,134.06,95.07623746]
[1767882276547,0.35080583,134.14,134.06,90.01955254]
[1767882277240,0.35080583,134.12,134.06,90.01955254]
[1767882277442,0.35080583,134.12,134.05,8.62165254]
[1767882278446,0.35080583,134.11,134.05,8.62165254]
[1767882282541,7.06940583,134.13,134.06,6.7221]
[1767882283051,7.06940583,134.13,134.07,1.89955254]
[1767882284646,7.06940583,134.13,134.06,6.7221]
[1767882285749,0.35080583,134.13,134.07,6.7216]
[1767882297758,0.35080583,134.11,134.04,6.723]
[1767882298165,7.06990583,134.12,134.04,6.723]
[1767882300263,2.96991488,134.14,134.04,6.723]
[1767882300264,7.06830583,134.14,134.04,2.96991488]
[1767882300963,7.06880583,134.13,134.06,6.7212]
[1767882301460,7.06880583,134.13,134.04,2.96991488]
[1767882301663,0.35080583,134.11,134.0,114.53495234]
[1767882301860,0.35080583,134.11,134.0,107.57871488]
[1767882302061,0.35080583,134.1,134.0,104.6088]
[1767882302266,7.07030583,134.1,134.03,6.7228]
[1767882309073,7.07030583,134.1,134.04,6.7224]
[1767882309570,7.07030583,134.1,134.01,9.92615234]
[1767882310168,7.07030583,134.1,134.03,6.7229]
[1767882314173,6.719,134.11,134.02,6.95623746]
[1767882314375,0.33561279,134.12,134.03,9.92615234]
[1767882315574,7.05421279,134.12,134.05,6.7219]
[1767882318581,7.05421279,134.12,134.06,6.7214]
[1767882319481,0.33561279,134.12,134.06,6.7214]
[1767882320676,0.33561279,134.11,134.04,6.95623746]
[1767882320869,0.33561279,134.11,134.03,6.95623746]
[1767882321668,0.33561279,134.13,134.04,6.95623746]
[1767882321869,0.33561279,134.12,134.05,6.95623746]
[1767882322777,0.33561279,134.12,134.04,6.95623746]
[1767882323279,0.33561279,134.12,134.06,6.7214]
[1767882323479,0.33561279,134.12,134.04,6.95623746]
[1767882323785,0.33561279,134.11,134.04,13.67823746]
[1767882324086,0.33561279,134.11,134.04,6.722]
[1767882324672,0.33561279,134.1,134.04,6.722]
[1767882325273,0.33561279,134.1,134.03,6.95623746]
[1767882325476,0.33561279,134.09,134.02,13.67923746]
[1767882327398,0.33561279,134.08,134.02,6.95623746]
[1767882327683,0.33561279,134.08,134.01,6.95623746]
[1767882328693,7.05611279,134.08,134.01,6.95623746]
[1767882328990,0.33561279,134.08,134.0,101.86013746]
[1767882329388,0.33561279,134.07,134.0,6.95623746]
[1767882330184,0.33561279,134.07,134.0,13.68063746]